Cogmind - Beta 10.1 @@@ ROGUE MODE // 2020.09.30 @ 10:48:29 Player: Enzo Result: Self-destructed Performance ------------- Evolutions (3) 1500 Regions Visited (7) 1400 Robots Destroyed (92) 460 Value Destroyed (3118) 3118 Prototype IDs (26) 520 Alien Tech Used (0) 0 Bonus (1322) 1322 TOTAL SCORE: 8320 Bonus ------- High Alert Combat Kills 342 Entered Garrisons 200 Used RIF Installer 500 Aligned with FarCom 300 Friendly Fire -20 Cogmind --------- Core Integrity 495/700 Matter 290/300 Energy 261/280 System Corruption 3% Temperature Cool (0) Movement Treading (152) Location -7/Factory Parts ------- > --- POWER (1) -------- Heavy Ion Engine > --- PROPULSION (2) --- Light Treads Advanced Treads > --- UTILITY (7) ------ Large Storage Unit Structural Scanner Improved Terrain Scanner Improved Terrain Scan Processor Improved Medium Armor Plating Relay Coupler [Swarmer] (41) Relay Coupler [Grunt] (6) > --- WEAPON (3) ------- Mini Assault Cannon > --- INVENTORY (10) --- Angular Momentum Engine Light Treads Improved Cooling System Improved Medium Armor Plating Relay Coupler [Brawler] (25) Relay Coupler [Duelist] (26) Relay Coupler [Sentry] (17) Improved EM Pulse Cannon Advanced Assault Cannon Improved Datajack Peak State ------------ > --- POWER ------------ Heavy Ion Engine > --- PROPULSION ------- Light Treads Advanced Treads > --- UTILITY ---------- Large Storage Unit Structural Scanner Improved Terrain Scanner Improved Terrain Scan Processor Improved Medium Armor Plating Relay Coupler [Swarmer] Relay Coupler [Grunt] > --- WEAPON ----------- Enhanced Autogun Mini Assault Cannon Remote Datajack > --- INVENTORY -------- Angular Momentum Engine Improved Cooling System Improved Medium Armor Plating Relay Coupler [Grunt] Relay Coupler [Brawler] Relay Coupler [Duelist] Relay Coupler [Sentry] Improved EM Pulse Cannon Advanced Assault Cannon Improved Datajack [Rating: 40] Favorites ----------- Power Ion Engine Engine Ion Engine Power Core Light Nuclear Core Propulsion Light Treads Treads Light Treads Utility Large Storage Unit Device Structural Scanner Storage Large Storage Unit Processor Improved Terrain Scan Processor Hackware Relay Coupler [Swarmer] Protection Hardened Medium Armor Plating Weapon Enhanced Autogun Energy Gun Shock Rifle Ballistic Gun Enhanced Autogun Ballistic Cannon Flak Cannon Launcher Rocket Launcher Special Weapon Remote Datajack Special Melee Weapon Improved Datajack Build | -11 -10 -10 -10 -9 -8 -8 -7 ------- Run | Scr Mat Min Exi Min Mat Gar Fac Slots Evolved 6 | . . . . . 4 . 2 Power . | . . . . . . . . Propulsion . | . . . . . . . . Utility 5 | . . . . . 3 . 2 Weapon 1 | . . . . . 1 . . Parts Attached 52 | 7 5 2 1 2 13 6 16 Power 5 | 1 1 . . . 2 . 1 Engine 3 | 1 1 . . . . . 1 Core 2 | . . . . . 2 . . Reactor . | . . . . . . . . Propulsion 12 | 2 . . . 2 2 2 4 Treads 12 | 2 . . . 2 2 2 4 Leg . | . . . . . . . . Wheel . | . . . . . . . . Hover . | . . . . . . . . Flight . | . . . . . . . . Utility 15 | 2 3 . . . 4 . 6 Device 4 | . 2 . . . 2 . . Storage 3 | 2 1 . . . . . . Processor 1 | . . . . . 1 . . Hackware 3 | . . . . . . . 3 Protection 4 | . . . . . 1 . 3 Artifact . | . . . . . . . . Weapon 20 | 2 1 2 1 . 5 4 5 Energy Gun 3 | . 1 1 . . 1 . . Energy Cannon . | . . . . . . . . Ballistic Gun 8 | 2 . . 1 . 3 2 . Ballistic Cannon 2 | . . 1 . . . . 1 Launcher 5 | . . . . . 1 2 2 Special Weapon 1 | . . . . . . . 1 Impact Weapon . | . . . . . . . . Slashing Weapon . | . . . . . . . . Piercing Weapon . | . . . . . . . . Special Melee Weapon 1 | . . . . . . . 1 Unidentified Prototypes 3 | . . . . . 1 . 2 Parts Lost 4 | . . . . . . . 4 Power . | . . . . . . . . Propulsion 1 | . . . . . . . 1 Utility . | . . . . . . . . Weapon 3 | . . . . . . . 3 Highest Loss Streak 3 | . . . . . . . 3 Average Slot Usage (%) 97 | . 100 100 91 85 92 100 98 Engine 6 | . 14 14 14 14 2 . 3 Core 3 | . . . . . 6 9 3 Treads 21 | . 28 28 28 28 17 18 14 Device 14 | . 6 14 14 14 18 18 15 Storage 11 | . 21 14 14 14 9 9 7 Processor 5 | . . . . . 9 9 7 Hackware 3 | . . . . . . . 15 Protection 5 | . . . . . 9 9 6 Energy Gun 3 | . 3 14 6 . . . . Ballistic Gun 14 | . 24 . 7 14 18 23 10 Ballistic Cannon 3 | . . 13 6 . . . 3 Launcher 1 | . . . . . 1 3 2 Naked Turns . | . . . . . . . . Heaviest Build 45 | 16 27 31 32 32 45 41 44 Greatest Support 42 | 40 40 40 40 40 40 40 42 Greatest Overweight (x) 1 | . . . . . 1 1 1 Average Overweight (x) . | . . . . . . . . Largest Inventory Capacity 12 | 8 12 10 10 10 10 10 10 Average Capacity 9 | 6 8 10 10 10 10 10 10 Most Carried 10 | 3 6 10 10 10 10 10 10 Average Carried 8 | . 4 8 9 10 7 9 9 Final Capacity 10 | 8 10 10 10 10 10 10 10 Final Carried 10 | 2 6 9 10 10 7 10 10 Class Distribution -------------------- 39% | Mutant 30% | Scavenger-Skirmisher 12% | Bothacker-Assassin 9% | Bothacker-Skirmisher 3% | Bothacker-Mutant 3% | Scavenger-Mutant Dominant Class ---------------- Mutant | -10/Materials Mutant | -10/Mines Mutant | -10/Exiles Mutant | -9/Mines Scavenger-Skirmisher | -8/Materials Scavenger-Skirmisher | -8/Garrison Bothacker-Assassin | -7/Factory Resources | -11 -10 -10 -10 -9 -8 -8 -7 ----------- Run | Scr Mat Min Exi Min Mat Gar Fac Matter Collected 2005 | 284 248 56 . 30 319 357 711 Remotely . | . . . . . . . . Salvage Created 3266 | 153 513 100 . 192 1245 463 600 Parts 204 | 14 29 7 . 18 76 29 31 Haulers Intercepted 7 | . 2 . . . 4 . 1 Recyclers Shooed . | . . . . . . . . Parts Field Recycled . | . . . . . . . . Retrieved Matter . | . . . . . . . . Parts Self-Destructed . | . . . . . . . . Prevented . | . . . . . . . . Kills | -11 -10 -10 -10 -9 -8 -8 -7 ------- Run | Scr Mat Min Exi Min Mat Gar Fac Combat Hostiles Destroyed 68 | . 11 2 . 8 16 18 13 Guns 46 | . 11 1 . 8 16 7 3 Cannons 8 | . . 1 . . . . 7 AOE 14 | . . . . . . 11 3 Classes Destroyed 13 | 2 3 1 . 1 5 . 1 Worker 2 | . . 1 . . 1 . . Builder 5 | . . . . . 5 . . Tunneler 3 | 3 . . . . . . . Hauler 7 | . 2 . . . 4 . 1 Recycler 2 | 1 . . . . . . 1 Operator 1 | . . . . . 1 . . Watcher 4 | . . . . . 2 . 2 Swarmer 19 | . 3 . . 6 . 7 3 Grunt 34 | . 8 2 . . 11 8 5 Brawler 1 | . . . . . 1 . . Duelist 4 | . . . . . 2 1 1 Sentry 8 | . . . . 2 2 2 2 Programmer 2 | . . . . . . . 2 Best Kill Streak 10 | 4 4 2 . 3 10 4 5 Combat Bots Only 7 | . 4 2 . 3 7 4 4 Max Kills in Single Turn 3 | 1 2 1 . 1 2 3 3 Gunslinging 1 | . 1 . . . . . . Exploded 3 | . . . . . . 3 3 Melee . | . . . . . . . . Uniques/NPCs Destroyed . | . . . . . . . . Combat | -11 -10 -10 -10 -9 -8 -8 -7 -------- Run | Scr Mat Min Exi Min Mat Gar Fac Damage Taken 2177 | . 376 25 . 98 263 324 1091 Core 333 | . 53 . . 18 29 28 205 Absorbed by Shields . | . . . . . . . . Core Remaining (%) 86 | 100 . . . 71 . 89 . Volleys Fired 200 | 7 46 6 . . 42 32 67 Largest 3 | 2 2 2 . . 3 3 2 Hottest 94 | 40 40 94 . . 75 83 73 Shots Fired 456 | 14 92 12 . 18 134 67 119 Gun 376 | 14 92 6 . 18 134 55 57 Cannon 61 | . . 6 . . . . 55 Launcher 15 | . . . . . . 12 3 Special 4 | . . . . . . . 4 Kinetic 428 | 14 92 6 . 18 131 55 112 Thermal . | . . . . . . . . Explosive 15 | . . . . . . 12 3 Electromagnetic 9 | . . 6 . . 3 . . Robot Hit Streak 17 | 12 9 12 . 6 17 12 17 Robot Miss Streak 4 | . 2 2 . 3 2 3 4 Penetration Max . | . . . . . . . . Secondary Targets 3 | . 2 . . . 1 . . Max Gunslinging Chain 1 | . 1 . . . 1 . . Autonomous 87 | . . . . 18 69 . . Shots Hit Robots 335 | 12 66 9 . 13 112 36 87 Core Hits 158 | 7 27 5 . 8 41 34 36 Critical Hits 6 | . . . . . 3 . 3 Critical Kills 3 | . . . . . 1 . 2 Critical Parts Destroyed 3 | . . . . . 2 . 1 Melee Attacks 4 | . . . . . . . 4 Impact . | . . . . . . . . Slashing . | . . . . . . . . Piercing . | . . . . . . . . Sneak Attacks . | . . . . . . . . Combat Hostiles . | . . . . . . . . Follow-up Attacks . | . . . . . . . . Damage Inflicted 8077 | 130 755 122 . 437 2980 1479 2174 Guns 5728 | 130 755 72 . 437 2980 516 838 Cannons 1194 | . . 50 . . . . 1144 Explosions 1155 | . . . . . . 963 192 Melee . | . . . . . . . . Ramming . | . . . . . . . . Kinetic 6795 | 130 755 50 . 437 2925 516 1982 Thermal . | . . . . . . . . Explosive 1155 | . . . . . . 963 192 Electromagnetic 127 | . . 72 . . 55 . . Impact . | . . . . . . . . Slashing . | . . . . . . . . Piercing . | . . . . . . . . Highest Corruption 3 | . . . . . . . 3 Average Corruption 2 | . . . . . . . 2 Corruption Purged . | . . . . . . . . Effects 13 | . . . . . . . 13 Message Errors 1 | . . . . . . . 1 Matter Fused 3 | . . . . . . . 3 Heat Flow Errors 2 | . . . . . . . 2 Energy Discharges 2 | . . . . . . . 2 Data Loss (minor) 2 | . . . . . . . 2 Targeting Errors 3 | . . . . . . . 3 Overload Shots . | . . . . . . . . Overflow Damage 61 | . . . . . . 22 39 Projectiles 39 | . . . . . . . 39 Explosions 22 | . . . . . . 22 . Melee . | . . . . . . . . Knockbacks 16 | . . 3 . . . . 13 Impact . | . . . . . . . . Kinetic 13 | . . 3 . . . . 10 Secondary 3 | . . . . . . . 3 Self-Inflicted Damage 95 | . . . . . . 45 50 Shots 3 | . . . . . . 1 2 Rammed . | . . . . . . . . Targets Rammed . | . . . . . . . . Kicked . | . . . . . . . . Crushed . | . . . . . . . . Highest Temperature 287 | . 18 66 . . 216 231 287 Average Temperature 60 | . 8 25 . . 43 68 80 Received Heat Transfer 630 | . 189 15 . . 54 99 273 Effects 1 | . . . . . . . 1 Energy Bleed 1 | . . . . . . . 1 Siege Activations . | . . . . . . . . Robots Corrupted . | . . . . . . . . Combat Hostiles . | . . . . . . . . Parts Fried 1 | . . . . . 1 . . Impact Corruptions 1 | . . . . . . . 1 Robots Melted . | . . . . . . . . Combat Hostiles . | . . . . . . . . Parts Melted . | . . . . . . . . Heat Transferred . | . . . . . . . . Parts Sabotaged . | . . . . . . . . Parts Stolen . | . . . . . . . . Parts Stripped . | . . . . . . . . Power Chain Reactions . | . . . . . . . . Missiles Intercepted . | . . . . . . . . Alert | -11 -10 -10 -10 -9 -8 -8 -7 ------- Run | Scr Mat Min Exi Min Mat Gar Fac Peak Influence 1015 | 20 286 60 . 210 374 1015 936 Initial 532 | . 13 5 . . 81 214 532 Average 373 | 10 143 16 . 99 229 640 656 Maximum Alert Level 3 | . 1 . . 1 1 3 3 Low Security (%) 37 | 100 71 100 . 98 35 . . Level 1 21 | . 28 . . 1 64 28 . Level 2 23 | . . . . . . 29 70 Level 3 17 | . . . . . . 42 29 Level 4 . | . . . . . . . . Level 5 . | . . . . . . . . High Security . | . . . . . . . . Max Security . | . . . . . . . . Squads Dispatched 16 | . . . . . 7 . 9 Investigation . | . . . . . . . . Extermination 1 | . . . . . . . 1 Reinforcement 5 | . . . . . 3 . 2 Assault 1 | . . . . . . . 1 Garrison 9 | . . . . . 4 . 5 Intercept . | . . . . . . . . Construction Impeded 1 | . . . . . . . 1 Haulers Reinforced . | . . . . . . . . Stealth | -11 -10 -10 -10 -9 -8 -8 -7 --------- Run | Scr Mat Min Exi Min Mat Gar Fac Distress Signals 4 | . . . . . 3 . 1 Communications Jammed . | . . . . . . . . Distress Signals . | . . . . . . . . Times Spotted 96 | . 17 2 . 6 26 19 26 Peak Tracking Total 7 | . 4 2 . 3 6 4 7 Tactical Retreats 4 | . 2 . . . 1 1 . Traps | -11 -10 -10 -10 -9 -8 -8 -7 ------- Run | Scr Mat Min Exi Min Mat Gar Fac Traps Triggered 6 | . . . . . . 6 . Indirectly . | . . . . . . . . Trap Hack Attempts . | . . . . . . . . Triggered . | . . . . . . . . Disarmed . | . . . . . . . . Reprogrammed . | . . . . . . . . Reused 1 | . . 1 . . . . . Traps Extracted . | . . . . . . . . Installed 4 | . . 4 . . . . . Triggered 1 | . . 1 . . . . . Machines | -11 -10 -10 -10 -9 -8 -8 -7 ---------- Run | Scr Mat Min Exi Min Mat Gar Fac Machines Disabled 5 | . . . . 1 2 2 . Max in Single Turn 1 | . . . . 1 1 1 . Garrison Relay 2 | . . . . . . 2 . Machines Sabotaged . | . . . . . . . . Garrisons Compromised . | . . . . . . . . Overloaded Fab Kills . | . . . . . . . . Fab Network Shutdowns 1 | . . . . . . . 1 Hacking | -11 -10 -10 -10 -9 -8 -8 -7 --------- Run | Scr Mat Min Exi Min Mat Gar Fac Machines Accessed 15 | . 4 1 1 . 3 . 6 Terminals 9 | . 4 . . . 1 . 4 Fabricators 1 | . . . . . . . 1 Repair Stations 1 | . . . . . 1 . . Recycling Units . | . . . . . . . . Scanalyzers . | . . . . . . . . Garrison Access 2 | . . . . . 1 . 1 Total Hacks 33 | . 14 1 1 . 6 . 11 Successful 22 | . 9 1 1 . 5 . 6 Failed 10 | . 4 . . . 1 . 5 Catastrophic 1 | . . . . . . . 1 Database Lockouts 1 | . 1 . . . . . . Manual 12 | . 9 . 1 . 1 . 1 Terminals 26 | . 14 . . . 3 . 9 Fabricators 1 | . . . . . . . 1 Repair Stations 2 | . . . . . 2 . . Recycling Units . | . . . . . . . . Scanalyzers . | . . . . . . . . Garrison Access 2 | . . . . . 1 . 1 Terminal Hacks 12 | . 4 1 1 . 2 . 4 Record 1 | . . . . . . . 1 Robot Analysis 1 | . 1 . . . . . . Open Door 1 | . . 1 . . . . . Branch Access Points 3 | . 1 . . . 1 . 1 Terminal Index 1 | . . . . . . . 1 Alert Level 1 | . . . . . 1 . . Unreport Threat 1 | . . . . . . . 1 Locate Traps 2 | . 2 . . . . . . EX-Prototype ID Bank 1 | . . . 1 . . . . Fabricator Hacks 1 | . . . . . . . 1 Build 1 | . . . . . . . 1 Repair Station Hacks 2 | . . . . . 2 . . Scan Component 1 | . . . . . 1 . . Repair 1 | . . . . . 1 . . Recycling Unit Hacks . | . . . . . . . . Scanalyzer . | . . . . . . . . Garrison Access Hacks 2 | . . . . . 1 . 1 Unlock Access 2 | . . . . . 1 . 1 Unauthorized Hacks 5 | . 5 . . . . . . Terminals 5 | . 5 . . . . . . Botnet 3 | . 3 . . . . . . Disrupt 1 | . 1 . . . . . . Operators 1 | . 1 . . . . . . Fabricators . | . . . . . . . . Repair Stations . | . . . . . . . . Recycling Units . | . . . . . . . . Scanalyzers . | . . . . . . . . Garrison Access . | . . . . . . . . Data Cores Recovered . | . . . . . . . . Used . | . . . . . . . . Hacking Detections 10 | . 4 . . . 2 . 4 Full Trace Events . | . . . . . . . . Feedback Events . | . . . . . . . . Feedback Blocked . | . . . . . . . . Robot Schematics Acquired . | . . . . . . . . Robots Built . | . . . . . . . . Matter . | . . . . . . . . Time . | . . . . . . . . Total Robot Build Rating . | . . . . . . . . Part Schematics Acquired . | . . . . . . . . Parts Built 2 | . . . . . . . 2 Matter 190 | . . . . . . . 190 Time 95 | . . . . . . . 95 Total Part Build Rating 10 | . . . . . . . 10 Parts Repaired 1 | . . . . . 1 . . Time 26 | . . . . . 26 . . Parts Recycled . | . . . . . . . . Recycled Matter . | . . . . . . . . Retrieved Matter . | . . . . . . . . Retrieved Components . | . . . . . . . . Parts Scanalyzed . | . . . . . . . . Part Schematics Acquired . | . . . . . . . . Parts Damaged . | . . . . . . . . Bothacking | -11 -10 -10 -10 -9 -8 -8 -7 ------------ Run | Scr Mat Min Exi Min Mat Gar Fac Used RIF Installer 1 | . . . . . . 1 . Robots Hacked 6 | . . . . . . . 6 Non-combat . | . . . . . . . . Combat 6 | . . . . . . . 6 Robot Hacks Applied 6 | . . . . . . . 6 spike_heat 1 | . . . . . . . 1 overwrite_iff 3 | . . . . . . . 3 formatsys_high 2 | . . . . . . . 2 Relay Couplers Released 7 | . . . . . . 7 . Machine Destruction 7 | . . . . . . 7 . Attached 3 | . . . . . . . 3 Robots Rewired . | . . . . . . . . Allies Hacked . | . . . . . . . . Hacks Repelled . | . . . . . . . . Allies | -11 -10 -10 -10 -9 -8 -8 -7 -------- Run | Scr Mat Min Exi Min Mat Gar Fac Total Allies 5 | . . . . . . . 5 Largest Group 2 | . . . . . . . 2 Highest-Rated Group 45 | . . . . . . . 45 Highest-Rated Ally 29 | . . . . . . . 29 Total Orders . | . . . . . . . . Ally Attacks 10 | . . . . . . . 10 Total Damage 123 | . . . . . . . 123 Kills . | . . . . . . . . Allies Corrupted . | . . . . . . . . Allies Melted . | . . . . . . . . Intel | -11 -10 -10 -10 -9 -8 -8 -7 ------- Run | Scr Mat Min Exi Min Mat Gar Fac Robot Analysis Total 1 | . 1 . . . . . . Derelict Logs Recovered 1 | . . 1 . . . . . Drone Launches . | . . . . . . . . Drone Recoveries . | . . . . . . . . Exploration | -11 -10 -10 -10 -9 -8 -8 -7 ------------- Run | Scr Mat Min Exi Min Mat Gar Fac Turns Passed 6499 | 121 832 1039 427 166 1008 1430 1476 Spaces Moved 3382 | 55 417 617 266 99 359 788 781 Core 6 | 6 . . . . . . . Treads 3376 | 49 417 617 266 99 359 788 781 Legs . | . . . . . . . . Wheels . | . . . . . . . . Hover . | . . . . . . . . Flight . | . . . . . . . . Fastest Speed 50 | 50 160 160 160 160 160 160 152 Average Speed 162 | 148 160 160 160 160 172 167 160 Slowest Speed 180 | 160 160 160 160 160 180 180 180 Overloaded Moves . | . . . . . . . . Propulsion Burnouts . | . . . . . . . . Robots Hopped . | . . . . . . . . Cave-ins Triggered . | . . . . . . . . Exploration Rate (%) 46 | 3 56 100 68 27 24 77 15 Regions Visited 7 Branch Regions 3 Pre-discovered Areas . | . . . . . . . . Known Exits Taken 2 | . 1 . . . 1 . . Unknown Exits Taken 4 | 1 . 1 1 1 . . . Scrap Searched 2 | . . 2 . . . . . Spaces Dug 6 | . . . . . . 6 . Terrain Destroyed 130 | . . . . 10 16 64 40 Melee . | . . . . . . . . Projectile 32 | . . . . 10 16 . 6 AOE 98 | . . . . . . 64 34 Terrain Rammed . | . . . . . . . . Walls Destroyed . | . . . . . . . . Machines Disabled . | . . . . . . . . Actions | -11 -10 -10 -10 -9 -8 -8 -7 --------- Run | Scr Mat Min Exi Min Mat Gar Fac Total 4102 | 80 499 657 269 108 716 868 905 Wait 388 | 6 23 21 . 6 293 20 19 Move 3374 | 54 416 616 265 98 358 786 781 Hop . | . . . . . . . . Pick Up 31 | 4 5 5 . . 3 7 7 Fast Attach 22 | 7 2 1 1 . 3 . 8 Attach 11 | . 1 . . . 6 . 4 Detach 3 | . . . 2 . 1 . . Swap 19 | . 2 1 . 2 4 6 4 Drop 33 | 2 4 3 1 2 6 5 10 Fire 200 | 7 46 6 . . 42 32 67 Melee 4 | . . . . . . . 4 Ram . | . . . . . . . . Kick . | . . . . . . . . Crush . | . . . . . . . . Escape Stasis 12 | . . . . . . 12 . Rewire 1 | . . . . . . . 1 Trap 4 | . . 4 . . . . . Miscellaneous . | . . . . . . . . Route ------- -11/Scrapyard -10/Materials (discovered 2 exits: [*Mat] / *Min) -10/Mines (discovered 3 exits: [*Mat x2] / *Exi) -10/Exiles -9/Mines -8/Materials -8/Garrison (discovered 3 exits: *Fac x3) -7/Factory (discovered 5 exits: Sto x2 / Low x2 / Gar) History --------- Turn | Location | Event 3 | -11/Scrapyard | Discovered new exit (range 16) 122 | -11/Scrapyard | Entered Materials 211 | -10/Materials | Central database locked down 313 | -10/Materials | Build established: Mutant 355 | -10/Materials | Discovered new exit (range 6) 729 | -10/Materials | Identified exit to Mines 755 | -10/Materials | Discovered new exit (range 5) 954 | -10/Materials | Entered Mines 959 | -10/Mines | Met a Derelict who couldn't figure out how to use a Trap Extractor 1036 | -10/Mines | Found a hidden stash of uninstalled traps 1159 | -10/Mines | Received a Rocket Launcher from a helpful Derelict 1209 | -10/Mines | Learned Materials security intel 1209 | -10/Mines | Discovered new exit (range 5) 1642 | -10/Mines | Discovered new exit (range 12) 1986 | -10/Mines | Deemed a non-threat by the Exiles lab entrance 1986 | -10/Mines | Discovered new exit (range 5) 1993 | -10/Mines | Entered Exiles 2033 | -10/Exiles | Met 8R-AWN 2061 | -10/Exiles | Met EX-HEX 2115 | -10/Exiles | Met EX-BIN 2133 | -10/Exiles | Aligned with FarCom system 2134 | -10/Exiles | Given EX-Vault access code 2174 | -10/Exiles | Opened EX-Vault 2190 | -10/Exiles | Found AWS/Gauss 2222 | -10/Exiles | Warned to stay clear of 0b10 Research branches 2273 | -10/Exiles | Met EX-DEC 2398 | -10/Exiles | Discovered new exit (range 14) 2420 | -10/Exiles | Left Exiles lab with AWS/Gauss 2420 | -10/Exiles | Entered Mines 2577 | -9/Mines | Discovered new exit (range 7) 2586 | -9/Mines | Entered Materials 2586 | -8/Materials | Evolved 4 slots: Utility x3, Weapon x1 2877 | -8/Materials | Build established: Scavenger-Skirmisher 2998 | -8/Materials | Garrison activated, responded to threat 3077 | -8/Materials | Destroyed 7 combat bots 3103 | -8/Materials | Repaired Lgt. Treads 3453 | -8/Materials | Garrison activated, responded to threat 3592 | -8/Materials | Identified exit to Garrison 3594 | -8/Materials | Entered Garrison 3740 | -8/Garrison | Triggered checkpoint 3764 | -8/Garrison | Garrison Relay disabled 3860 | -8/Garrison | Triggered checkpoint 3954 | -8/Garrison | Discovered new exit (range 12) 3956 | -8/Garrison | Triggered checkpoint 4229 | -8/Garrison | Triggered checkpoint 4312 | -8/Garrison | Discovered new exit (range 9) 4522 | -8/Garrison | Discovered new exit (range 15) 4559 | -8/Garrison | Installed Relay Interface Framework 4734 | -8/Garrison | Triggered checkpoint 4832 | -8/Garrison | Garrison Relay disabled 5024 | -8/Garrison | Entered Factory 5024 | -7/Factory | Evolved 2 slots: Utility x2 5178 | -7/Factory | Fabricated Angular Momentum Engine? 5234 | -7/Factory | Local fabrication network quarantined 5288 | -7/Factory | Identified exit to Storage 5288 | -7/Factory | Identified exit to Lower Caves 5323 | -7/Factory | Build established: Bothacker-Assassin 5798 | -7/Factory | Identified exit to Garrison 5824 | -7/Factory | First assault squad dispatched 5831 | -7/Factory | Garrison activated, responded to threat 6135 | -7/Factory | Build established: Bothacker-Skirmisher 6397 | -7/Factory | Garrison activated, responded to threat 6470 | -7/Factory | Lost 3 parts (1n2w) 6500 | -7/Factory | Self-destructed Last Messages --------------- 06441_ K-01 Serf collects debris. 06441_ Y-54 Guardian destroyed. 06442_ System corrupted: Matter fused (-8). 06442_ K-01 Serf collects debris. 06443_ W-25 Informer destroyed. 06445_ K-01 Serf collects debris. 06447_ I-36 Angel knocked back. 06450_ K-01 Serf collects debris. 06457_ Acquired 9 matter. 06460_ K-01 Serf collects debris. 06460_ Acquired 38 matter. 06462_ Acquired 29 matter. 06465_ K-01 Serf collects debris. 06468_ Acquired Lgt. Treads. 06469_ K-01 Serf collects debris. 06470_ Acquired 54 matter. 06471_ Acquired 22 matter. 06474_ K-01 Serf collects debris. 06484_ Acquired 10 matter. 06486_ K-01 Serf collects debris. Map ----- +----------------------------------------------------+ | ## # # + #####+########## | | ## """ """ # # # ### # # | | ## """ """ # # # ### # # | | ## """ """ # # # """ # | | ## # # ? ##### >G" # | | ## ! # #### ###?? ##### # """ # | | ###+########### #### ############# %### # | | # ####+############## ########## | | # # [=%[! #### #######??# | | + # ""="%" " " ###### ########## | | # # ""*"!" " " ###### ########?# | | # # "T " " " " ###### #######?## | | # ######### # "" " " " " ### # #########? | | # ## # # "" " " " " #### # ########## | | # ## # # " " " " #### # # ######## | | # ## # # " " " " ### # # ######## | | # ## # # " " " " ### ## # ######## | | # ## # # " " " " #### # ########?# | | # ## #^^^^ # ###### ########## | | # ## # ^ ^# ] ###### #########? | | # #####/### ###+#######+####### ########## | | # k *^ | | # =k [ !^ | | # % %* ! ^ | | # k| ^ | | # @% ^ | | #+#+######+#############+########%##########+##### | | ####### ? # ###### # | | ] ####### # ###### # | | ####### # ####?# """""" # | | """ """"""" ####### """ """ # ###### """""" + | | """ """"""" ####### """ """ # ###?## """""" # | | """ """"""" ####?#? """ """ # ###### """"?"?+ | | """ """"""" ####### # ###### ??? | | ####### """ """ # ###### ? ???? | | #################?## ""? """ # #?#####?+###???? | | ###?##?############# """ """ # ####?###?#?????? | | ???###?##?#######?## ? # ##?#####?#?????? | | ?????###?#???##?#### ? ? ?? # ####?##????????? | | ?####?########?###??####?#??????? #??????????????? | | ??####??##??#?#### ? ????? ???# ???????????????? | | ###??##??#???##?????????"???????? ???????????????? | | ????#??#??##?????????????????????????????????????? | | #??#?##??????????????????????????????????????????? | | #???#??##???#????????????????????????????????????? | | ?????????#???????????????????????????????????????? | | ??#??????????????????????????????????????????????? | | ???#?????????????????????????????????????????????? | | ???#?????????????????????????????????????????????? | | ?????????????????????????????????????????????????? | +----------------------------------------------------+ Best States ------------- Heat Dissipation 39 Energy Generation 14 Energy Capacity 280 Matter Stores 300 Matter Capacity 300 Sight Range 16 Terrain Scan Range 16 Terrain Scan Density 110 Armor Coverage 225 Evasion (%) 40 Recoil Reduction 2 Relay Coupler Types 69 Relay Coupler Value 2 Item Schematics ----------------- None Robot Schematics ------------------ None Fabricated ------------ Angular Momentum Engine | x2 | -7/Factory | Preloaded Alien Tech Used ----------------- None Achievements -------------- None Challenges ------------ None Game ------ Seed TachyonCooledPit Manual? 0 Play Time 00:41:23 Cumulative 41.9 hours Start 2020.09.29 @ 18:06:40 End 2020.09.30 @ 10:48:29 Sessions 3 Manual Loads 0 Difficulty Rogue Special Mode None Game No. 98 Rogue 98 Adventurer 0 Explorer 0 Win Type - Total 0 Types 0/0/0/0/0/0/0/0/0 Lore% 39 Gallery% 41 Achievement% 33 Wizard Run 0 Options --------- ASCII 0 Keyboard 0 Movement Numpad Keybinds 0 Fullscreen 2 Font 24/Smallcaps Map View 76x50 Tactical HUD 1 Map Filters NONE Filters NONE Steam 1 RUN: b118eedc-07ef-42c2-b50f-0fc6b9666b98